[Event "Late-Titled-Tuesday-Blitz-September-26-2023"]
[Site "Chess.com"]
[Date "2023.09.26"]
[Round "11"]
[White "nitpicker"]
[Black "Nekoo04"]
[Result "1-0"]
[WhiteElo "2252"]
[BlackElo "2296"]
[TimeControl "180+1"]
[EndTime "16:00:05 PDT"]
[Termination "nitpicker won on time"]

1. d4 {[%clk 0:03:00.9]} 1... d5 {[%clk 0:02:56]} 2. c4 {[%clk 0:03:00.8]} 2...
e6 {[%clk 0:02:52.7]} 3. Nf3 {[%clk 0:03:00.9]} 3... Nf6 {[%clk 0:02:51]} 4. g3
{[%clk 0:03:01]} 4... Bb4+ {[%clk 0:02:48.5]} 5. Bd2 {[%clk 0:03:00.2]} 5... Be7
{[%clk 0:02:48.9]} 6. Bg2 {[%clk 0:02:59.6]} 6... O-O {[%clk 0:02:49.2]} 7. Qc2
{[%clk 0:02:59.2]} 7... Nbd7 {[%clk 0:02:49.3]} 8. O-O {[%clk 0:02:58.3]} 8...
c6 {[%clk 0:02:49.9]} 9. Rd1 {[%clk 0:02:57.2]} 9... b6 {[%clk 0:02:49.5]} 10.
Bf4 {[%clk 0:02:52.4]} 10... Bb7 {[%clk 0:02:48.5]} 11. Nc3 {[%clk 0:02:48.3]}
11... Rc8 {[%clk 0:02:29.4]} 12. Nd2 {[%clk 0:02:29.2]} 12... c5 {[%clk
0:02:13.4]} 13. dxc5 {[%clk 0:02:24.6]} 13... bxc5 {[%clk 0:01:11]} 14. cxd5
{[%clk 0:02:03.3]} 14... exd5 {[%clk 0:01:08.9]} 15. Nc4 {[%clk 0:01:54.4]}
15... Nb6 {[%clk 0:00:47.9]} 16. Ne3 {[%clk 0:01:37]} 16... Ba8 {[%clk
0:00:38.9]} 17. Nf5 {[%clk 0:01:15]} 17... d4 {[%clk 0:00:36.7]} 18. Bxa8 {[%clk
0:01:05.7]} 18... Rxa8 {[%clk 0:00:33]} 19. e3 {[%clk 0:00:54.4]} 19... g6
{[%clk 0:00:08.6]} 20. Nxe7+ {[%clk 0:00:49.1]} 20... Qxe7 {[%clk 0:00:09.5]}
21. exd4 {[%clk 0:00:48.6]} 21... cxd4 {[%clk 0:00:09.2]} 22. Rxd4 {[%clk
0:00:47.6]} 22... Rfd8 {[%clk 0:00:07.6]} 23. Rad1 {[%clk 0:00:38.2]} 23... Rxd4
{[%clk 0:00:04.8]} 24. Rxd4 {[%clk 0:00:39.1]} 24... Re8 {[%clk 0:00:03.5]} 25.
Qd2 {[%clk 0:00:31]} 25... Ng4 {[%clk 0:00:02.5]} 26. h3 {[%clk 0:00:24.7]}
26... Ne5 {[%clk 0:00:02.3]} 27. Re4 {[%clk 0:00:22.6]} 1-0

[Event "Late-Titled-Tuesday-Blitz-September-26-2023"]
[Site "Chess.com"]
[Date "2023.09.26"]
[Round "11"]
[White "Harsha_Bharathakoti"]
[Black "mishanick"]
[Result "0-1"]
[WhiteElo "2911"]
[BlackElo "3092"]
[TimeControl "180+1"]
[EndTime "16:00:17 PDT"]
[Termination "mishanick won by resignation"]

1. Nf3 {[%clk 0:03:00.9]} 1... d5 {[%clk 0:02:44.4]} 2. g3 {[%clk 0:02:59.7]}
2... Nf6 {[%clk 0:02:43.4]} 3. Bg2 {[%clk 0:02:59.8]} 3... e6 {[%clk 0:02:44.3]}
4. O-O {[%clk 0:02:59.6]} 4... Be7 {[%clk 0:02:45.2]} 5. c4 {[%clk 0:03:00.2]}
5... O-O {[%clk 0:02:44.7]} 6. b3 {[%clk 0:02:58.1]} 6... d4 {[%clk 0:02:43.2]}
7. e3 {[%clk 0:02:54.9]} 7... c5 {[%clk 0:02:43.4]} 8. exd4 {[%clk 0:02:55.6]}
8... cxd4 {[%clk 0:02:44.2]} 9. Ne5 {[%clk 0:02:56.3]} 9... Qc7 {[%clk
0:02:42.5]} 10. Re1 {[%clk 0:02:53.9]} 10... Nfd7 {[%clk 0:02:43.1]} 11. Nf3
{[%clk 0:02:45.1]} 11... Nc6 {[%clk 0:02:41.1]} 12. Bb2 {[%clk 0:02:45]} 12...
e5 {[%clk 0:02:40.9]} 13. d3 {[%clk 0:02:23.5]} 13... Nc5 {[%clk 0:02:40]} 14.
Ba3 {[%clk 0:02:23]} 14... Bg4 {[%clk 0:02:27.1]} 15. h3 {[%clk 0:02:22.7]}
15... Bh5 {[%clk 0:02:27.2]} 16. Bxc5 {[%clk 0:02:23.1]} 16... Bxc5 {[%clk
0:02:27.4]} 17. a3 {[%clk 0:02:23.7]} 17... a5 {[%clk 0:02:26.8]} 18. Nbd2
{[%clk 0:02:23.9]} 18... f5 {[%clk 0:02:25.5]} 19. Qc2 {[%clk 0:02:06]} 19...
Rad8 {[%clk 0:02:21.4]} 20. Ng5 {[%clk 0:01:56]} 20... e4 {[%clk 0:01:41.5]} 21.
Ne6 {[%clk 0:01:54.3]} 21... Qe7 {[%clk 0:01:41.4]} 22. Nxd8 {[%clk 0:01:47.8]}
22... Rxd8 {[%clk 0:01:40.4]} 23. dxe4 {[%clk 0:01:45.7]} 23... d3 {[%clk
0:01:40.4]} 24. Qa2 {[%clk 0:01:21.2]} 24... Bxf2+ {[%clk 0:00:34.5]} 25. Kxf2
{[%clk 0:01:13.2]} 25... Qc5+ {[%clk 0:00:34.8]} 26. Re3 {[%clk 0:01:10.8]}
26... fxe4 {[%clk 0:00:17.6]} 27. g4 {[%clk 0:00:28.9]} 27... Rf8+ {[%clk
0:00:15.7]} 28. Bf3 {[%clk 0:00:29.5]} 28... Ne5 {[%clk 0:00:15.6]} 29. gxh5
{[%clk 0:00:12.5]} 29... Nxf3 {[%clk 0:00:15]} 30. Nxe4 {[%clk 0:00:10]} 30...
Ng5+ {[%clk 0:00:14.7]} 0-1

[Event "Late-Titled-Tuesday-Blitz-September-26-2023"]
[Site "Chess.com"]
[Date "2023.09.26"]
[Round "11"]
[White "karinachess1"]
[Black "ChadBiryani"]
[Result "1-0"]
[WhiteElo "2624"]
[BlackElo "2502"]
[TimeControl "180+1"]
[EndTime "16:00:26 PDT"]
[Termination "karinachess1 won by checkmate"]

1. d4 {[%clk 0:03:00.9]} 1... d5 {[%clk 0:02:56.8]} 2. c4 {[%clk 0:03:01.1]}
2... c6 {[%clk 0:02:56.8]} 3. Nf3 {[%clk 0:03:00.7]} 3... Nf6 {[%clk 0:02:56.5]}
4. g3 {[%clk 0:03:01.3]} 4... e6 {[%clk 0:02:53.9]} 5. Bg2 {[%clk 0:03:01.1]}
5... dxc4 {[%clk 0:02:54.4]} 6. Ne5 {[%clk 0:02:56.1]} 6... Bd6 {[%clk
0:02:52.9]} 7. Nxc4 {[%clk 0:02:56]} 7... Bc7 {[%clk 0:02:53.2]} 8. O-O {[%clk
0:02:54]} 8... O-O {[%clk 0:02:53.8]} 9. Nc3 {[%clk 0:02:54.5]} 9... Nbd7 {[%clk
0:02:53.5]} 10. e4 {[%clk 0:02:24.1]} 10... h6 {[%clk 0:02:49.2]} 11. e5 {[%clk
0:02:21.5]} 11... Nd5 {[%clk 0:02:48.7]} 12. Ne4 {[%clk 0:02:21]} 12... b6
{[%clk 0:02:32.2]} 13. b3 {[%clk 0:02:15.7]} 13... f6 {[%clk 0:02:07.5]} 14. Ba3
{[%clk 0:02:13.4]} 14... fxe5 {[%clk 0:02:07.6]} 15. Bxf8 {[%clk 0:02:12.6]}
15... Kxf8 {[%clk 0:02:07.9]} 16. dxe5 {[%clk 0:01:58.9]} 16... Nxe5 {[%clk
0:02:03.4]} 17. Qh5 {[%clk 0:01:50.7]} 17... Nf7 {[%clk 0:01:34.9]} 18. Rad1
{[%clk 0:01:48.8]} 18... Qe7 {[%clk 0:01:30.8]} 19. Rfe1 {[%clk 0:01:47]} 19...
Bd7 {[%clk 0:01:20.4]} 20. Qg6 {[%clk 0:01:46.7]} 20... Re8 {[%clk 0:01:08.6]}
21. Ne3 {[%clk 0:01:28.1]} 21... Bc8 {[%clk 0:00:39.1]} 22. Qh7 {[%clk
0:01:15.3]} 22... Ng5 {[%clk 0:00:30.3]} 23. Nxg5 {[%clk 0:01:06.6]} 23... Qxg5
{[%clk 0:00:30.6]} 24. Nxd5 {[%clk 0:01:05]} 24... cxd5 {[%clk 0:00:30.4]} 25.
Rxd5 {[%clk 0:00:59.6]} 25... Qf6 {[%clk 0:00:20.6]} 26. Rd3 {[%clk 0:00:59.2]}
26... Ke7 {[%clk 0:00:14.8]} 27. h4 {[%clk 0:00:49.5]} 27... e5 {[%clk 0:00:10]}
28. Rf3 {[%clk 0:00:48.2]} 28... Qe6 {[%clk 0:00:06.3]} 29. Qxg7+ {[%clk
0:00:48.6]} 29... Kd8 {[%clk 0:00:03.5]} 30. Rd1+ {[%clk 0:00:48.2]} 30... Bd7
{[%clk 0:00:03.6]} 31. Rf7 {[%clk 0:00:40.3]} 31... Re7 {[%clk 0:00:02.7]} 32.
Qf8+ {[%clk 0:00:36.1]} 32... Re8 {[%clk 0:00:01.4]} 33. Rfxd7+ {[%clk
0:00:36.3]} 33... Qxd7 {[%clk 0:00:01.4]} 34. Rxd7+ {[%clk 0:00:36.1]} 34...
Kxd7 {[%clk 0:00:02.3]} 35. Bc6+ {[%clk 0:00:36.2]} 35... Kxc6 {[%clk
0:00:01.5]} 36. Qxe8+ {[%clk 0:00:36.6]} 36... Kd6 {[%clk 0:00:01.9]} 37. Qg6+
{[%clk 0:00:36.6]} 37... Kd5 {[%clk 0:00:02.3]} 38. Qxh6 {[%clk 0:00:37.1]}
38... Bd6 {[%clk 0:00:02.9]} 39. Qg6 {[%clk 0:00:37]} 39... Bc5 {[%clk
0:00:03.3]} 40. h5 {[%clk 0:00:37.4]} 40... Kd4 {[%clk 0:00:03.5]} 41. h6 {[%clk
0:00:37.7]} 41... e4 {[%clk 0:00:04.2]} 42. h7 {[%clk 0:00:38]} 42... Kc3 {[%clk
0:00:03.9]} 43. h8=Q+ {[%clk 0:00:37.7]} 43... Kb4 {[%clk 0:00:04.1]} 44. Qxe4+
{[%clk 0:00:37.8]} 44... Ka3 {[%clk 0:00:04.1]} 45. Qa4# {[%clk 0:00:37.9]} 1-0

[Event "Late-Titled-Tuesday-Blitz-September-26-2023"]
[Site "Chess.com"]
[Date "2023.09.26"]
[Round "11"]
[White "laskakid"]
[Black "NigelDwarf"]
[Result "0-1"]
[WhiteElo "2330"]
[BlackElo "2526"]
[TimeControl "180+1"]
[EndTime "16:00:29 PDT"]
[Termination "NigelDwarf won by resignation"]

1. d4 {[%clk 0:03:00.9]} 1... Nf6 {[%clk 0:02:59.4]} 2. c4 {[%clk 0:03:00.9]}
2... a6 {[%clk 0:02:58.3]} 3. Nc3 {[%clk 0:03:00.2]} 3... c5 {[%clk 0:02:58]} 4.
Nf3 {[%clk 0:02:49.9]} 4... cxd4 {[%clk 0:02:57.4]} 5. Nxd4 {[%clk 0:02:50.2]}
5... Nc6 {[%clk 0:02:57.8]} 6. g3 {[%clk 0:02:50.3]} 6... Qb6 {[%clk 0:02:55.3]}
7. Nb3 {[%clk 0:02:44.3]} 7... Ne5 {[%clk 0:02:52.7]} 8. e4 {[%clk 0:02:07.7]}
8... e6 {[%clk 0:02:19.3]} 9. Be3 {[%clk 0:02:03]} 9... Qc7 {[%clk 0:02:13.8]}
10. Rc1 {[%clk 0:01:46.9]} 10... Bb4 {[%clk 0:02:07]} 11. Nd2 {[%clk 0:01:35.4]}
11... Neg4 {[%clk 0:01:50.2]} 12. Bf4 {[%clk 0:01:27.6]} 12... e5 {[%clk
0:01:26.9]} 13. Bg5 {[%clk 0:01:26.9]} 13... Bc5 {[%clk 0:01:24.3]} 14. Bxf6
{[%clk 0:01:15.4]} 14... Nxf2 {[%clk 0:00:53.4]} 15. Qf3 {[%clk 0:01:06.2]}
15... gxf6 {[%clk 0:00:46.1]} 16. Nd5 {[%clk 0:01:04.8]} 16... Qd6 {[%clk
0:00:19.6]} 17. b4 {[%clk 0:01:01.3]} 17... Bd4 {[%clk 0:00:17.8]} 18. c5 {[%clk
0:01:01.2]} 18... Qc6 {[%clk 0:00:16.5]} 19. Nxf6+ {[%clk 0:01:00.5]} 19... Kd8
{[%clk 0:00:16.3]} 20. Nd5 {[%clk 0:00:57.4]} 20... Nxh1 {[%clk 0:00:14.1]} 21.
Qxf7 {[%clk 0:00:56.5]} 21... Re8 {[%clk 0:00:12.3]} 22. Be2 {[%clk 0:00:48.5]}
22... Nf2 {[%clk 0:00:06.1]} 23. Bh5 {[%clk 0:00:48]} 23... Qe6 {[%clk
0:00:03.8]} 24. Qxe8+ {[%clk 0:00:44.2]} 24... Qxe8 {[%clk 0:00:04.1]} 25. Bxe8
{[%clk 0:00:44.3]} 25... Nd3+ {[%clk 0:00:04.8]} 26. Kd1 {[%clk 0:00:41.6]}
26... Nxc1 {[%clk 0:00:05.7]} 27. Kxc1 {[%clk 0:00:41.9]} 27... a5 {[%clk
0:00:03.7]} 28. Nb6 {[%clk 0:00:34.5]} 28... Ra6 {[%clk 0:00:04]} 29. b5 {[%clk
0:00:33.3]} 29... Rxb6 {[%clk 0:00:04.4]} 30. cxb6 {[%clk 0:00:33.2]} 30... Kxe8
{[%clk 0:00:04.7]} 31. Nc4 {[%clk 0:00:32.2]} 31... Ke7 {[%clk 0:00:04.7]} 32.
Nxa5 {[%clk 0:00:32.3]} 32... Bxb6 {[%clk 0:00:05.1]} 33. Nc4 {[%clk 0:00:32.2]}
33... Bd4 {[%clk 0:00:05.6]} 34. a4 {[%clk 0:00:31.6]} 34... d6 {[%clk
0:00:05.2]} 35. Nb6 {[%clk 0:00:30.6]} 35... Bxb6 {[%clk 0:00:05.1]} 36. Kd2
{[%clk 0:00:30.3]} 36... Ba5+ {[%clk 0:00:06]} 37. Kd3 {[%clk 0:00:30.5]} 37...
Be6 {[%clk 0:00:06.9]} 38. Ke3 {[%clk 0:00:30.6]} 38... Kd7 {[%clk 0:00:07.8]}
39. Kf3 {[%clk 0:00:29.2]} 39... d5 {[%clk 0:00:08.7]} 40. exd5 {[%clk
0:00:28.9]} 40... Bxd5+ {[%clk 0:00:09.6]} 0-1

[Event "Late-Titled-Tuesday-Blitz-September-26-2023"]
[Site "Chess.com"]
[Date "2023.09.26"]
[Round "11"]
[White "Hrant_ChessMood"]
[Black "SpeedofLight0"]
[Result "0-1"]
[WhiteElo "2910"]
[BlackElo "3048"]
[TimeControl "180+1"]
[EndTime "16:00:32 PDT"]
[Termination "SpeedofLight0 won on time"]

1. d4 {[%clk 0:03:00.9]} 1... d5 {[%clk 0:02:56.9]} 2. c4 {[%clk 0:03:00.7]}
2... e6 {[%clk 0:02:56.4]} 3. Nf3 {[%clk 0:02:58.9]} 3... Nf6 {[%clk 0:02:56.4]}
4. Nc3 {[%clk 0:02:58.3]} 4... dxc4 {[%clk 0:02:53.9]} 5. e4 {[%clk 0:02:57.2]}
5... Bb4 {[%clk 0:02:54.4]} 6. Bxc4 {[%clk 0:02:55.3]} 6... Nxe4 {[%clk
0:02:54.9]} 7. O-O {[%clk 0:02:55.4]} 7... Nxc3 {[%clk 0:02:54.7]} 8. bxc3
{[%clk 0:02:54.9]} 8... Be7 {[%clk 0:02:55.6]} 9. Qe2 {[%clk 0:02:53.7]} 9...
O-O {[%clk 0:02:55.1]} 10. Rd1 {[%clk 0:02:53.3]} 10... Nc6 {[%clk 0:02:53.3]}
11. Bd3 {[%clk 0:02:49.8]} 11... Bf6 {[%clk 0:02:51.5]} 12. Bb2 {[%clk
0:02:43.8]} 12... Ne7 {[%clk 0:02:47.9]} 13. c4 {[%clk 0:02:42.6]} 13... Bd7
{[%clk 0:02:46.9]} 14. Ne5 {[%clk 0:02:38.6]} 14... Ba4 {[%clk 0:02:46.2]} 15.
Rd2 {[%clk 0:02:33.4]} 15... Ng6 {[%clk 0:02:45.1]} 16. Be4 {[%clk 0:02:23.1]}
16... Rb8 {[%clk 0:02:28.9]} 17. g3 {[%clk 0:02:15.2]} 17... Qd6 {[%clk
0:02:23.6]} 18. h4 {[%clk 0:02:08.9]} 18... Rfd8 {[%clk 0:02:18.3]} 19. Ng4
{[%clk 0:02:03.9]} 19... Be7 {[%clk 0:02:10.5]} 20. h5 {[%clk 0:02:03.4]} 20...
Nf8 {[%clk 0:02:08]} 21. c5 {[%clk 0:01:47.8]} 21... Qa6 {[%clk 0:02:04.5]} 22.
Bd3 {[%clk 0:01:46.4]} 22... Qc6 {[%clk 0:01:55.2]} 23. h6 {[%clk 0:01:46]}
23... Ng6 {[%clk 0:01:40.1]} 24. hxg7 {[%clk 0:01:41]} 24... Qd5 {[%clk
0:01:36.3]} 25. Be4 {[%clk 0:01:31.7]} 25... Bb5 {[%clk 0:01:17]} 26. Bxd5
{[%clk 0:00:55.5]} 26... Bxe2 {[%clk 0:01:16.3]} 27. Bxe6 {[%clk 0:00:56.4]}
27... Bf3 {[%clk 0:01:07.5]} 28. d5 {[%clk 0:00:23.5]} 28... Bg5 {[%clk
0:01:00.7]} 29. Rd3 {[%clk 0:00:10]} 29... Be2 {[%clk 0:01:00.6]} 30. Bf5 {[%clk
0:00:04.9]} 30... Bxd3 {[%clk 0:00:48.2]} 31. Bxd3 {[%clk 0:00:05.8]} 31... Rxd5
{[%clk 0:00:48.4]} 32. Bc4 {[%clk 0:00:06.2]} 32... Rxc5 {[%clk 0:00:48.6]} 33.
Bb3 {[%clk 0:00:06.6]} 33... h5 {[%clk 0:00:44.7]} 34. Nh2 {[%clk 0:00:05.4]}
34... Rc6 {[%clk 0:00:36.4]} 35. Nf3 {[%clk 0:00:04.8]} 35... Bf6 {[%clk
0:00:36.8]} 36. Rb1 {[%clk 0:00:03.1]} 36... Bxb2 {[%clk 0:00:35.7]} 37. Rxb2
{[%clk 0:00:04]} 37... Kxg7 {[%clk 0:00:36]} 38. Nd4 {[%clk 0:00:03.1]} 38...
Rf6 {[%clk 0:00:32.5]} 39. Bc2 {[%clk 0:00:02.4]} 39... Ne7 {[%clk 0:00:30.7]}
40. Kg2 {[%clk 0:00:02.2]} 40... Rd8 {[%clk 0:00:30.4]} 41. Nf3 {[%clk
0:00:01.4]} 41... b6 {[%clk 0:00:28.6]} 42. Be4 {[%clk 0:00:01.9]} 42... Re6
{[%clk 0:00:25.1]} 0-1

[Event "Late-Titled-Tuesday-Blitz-September-26-2023"]
[Site "Chess.com"]
[Date "2023.09.26"]
[Round "11"]
[White "jk13"]
[Black "FERNANDEZL1983"]
[Result "0-1"]
[WhiteElo "2616"]
[BlackElo "2548"]
[TimeControl "180+1"]
[EndTime "16:00:32 PDT"]
[Termination "FERNANDEZL1983 won by resignation"]

1. e4 {[%clk 0:03:00.9]} 1... c5 {[%clk 0:02:59.1]} 2. c3 {[%clk 0:03:01.4]}
2... d6 {[%clk 0:02:58.3]} 3. d4 {[%clk 0:03:01.1]} 3... Nf6 {[%clk 0:02:58.5]}
4. Bd3 {[%clk 0:03:01.8]} 4... Nc6 {[%clk 0:02:58.5]} 5. Nf3 {[%clk 0:03:02.5]}
5... g6 {[%clk 0:02:56.7]} 6. h3 {[%clk 0:03:02.4]} 6... Bg7 {[%clk 0:02:57]} 7.
dxc5 {[%clk 0:03:03.2]} 7... dxc5 {[%clk 0:02:56.7]} 8. O-O {[%clk 0:03:04]}
8... O-O {[%clk 0:02:56.9]} 9. Qe2 {[%clk 0:03:04.8]} 9... Qc7 {[%clk
0:02:55.1]} 10. Re1 {[%clk 0:03:03.4]} 10... a6 {[%clk 0:02:55]} 11. a4 {[%clk
0:03:03]} 11... Nh5 {[%clk 0:02:53.4]} 12. e5 {[%clk 0:03:02.7]} 12... f5 {[%clk
0:02:36.1]} 13. Bc4+ {[%clk 0:02:49.1]} 13... Kh8 {[%clk 0:02:32.4]} 14. Qe3
{[%clk 0:02:38.4]} 14... Na5 {[%clk 0:02:29]} 15. Ba2 {[%clk 0:02:21.1]} 15...
f4 {[%clk 0:02:27.7]} 16. Qe2 {[%clk 0:02:17.6]} 16... c4 {[%clk 0:02:27.4]} 17.
Nbd2 {[%clk 0:02:16.7]} 17... Be6 {[%clk 0:02:27.9]} 18. Bb1 {[%clk 0:02:07.2]}
18... Rad8 {[%clk 0:02:16.9]} 19. Bc2 {[%clk 0:01:59.6]} 19... Bg8 {[%clk
0:02:15.7]} 20. Nd4 {[%clk 0:01:55.1]} 20... Rd5 {[%clk 0:02:05.7]} 21. N2f3
{[%clk 0:01:54.3]} 21... Nc6 {[%clk 0:01:58.3]} 22. Qxc4 {[%clk 0:01:50]} 22...
Rxd4 {[%clk 0:01:57.3]} 23. Qe2 {[%clk 0:01:39.5]} 23... Bc4 {[%clk 0:01:53.8]}
24. cxd4 {[%clk 0:01:26.2]} 24... Bxe2 {[%clk 0:01:53.4]} 25. Rxe2 {[%clk
0:01:27.1]} 25... Nb4 {[%clk 0:01:52.6]} 26. Be4 {[%clk 0:01:23.7]} 26... Qc4
{[%clk 0:01:51.4]} 27. Kf1 {[%clk 0:01:13.5]} 27... Rc8 {[%clk 0:01:46]} 28. Bd2
{[%clk 0:01:10.6]} 28... Nd3 {[%clk 0:01:43.2]} 29. Bc3 {[%clk 0:01:06.1]} 29...
b5 {[%clk 0:01:29.4]} 30. Nd2 {[%clk 0:01:03.2]} 30... Qe6 {[%clk 0:00:51.2]}
31. Bxd3 {[%clk 0:01:03]} 31... f3 {[%clk 0:00:50.2]} 32. Nxf3 {[%clk
0:00:47.6]} 32... Nf4 {[%clk 0:00:50.7]} 33. Rd2 {[%clk 0:00:46.5]} 33... Nxd3
{[%clk 0:00:50.4]} 34. Rxd3 {[%clk 0:00:46.8]} 34... b4 {[%clk 0:00:50.9]} 35.
Be1 {[%clk 0:00:42.5]} 35... Qc4 {[%clk 0:00:49.2]} 36. Rd1 {[%clk 0:00:41.9]}
36... Bh6 {[%clk 0:00:48.1]} 37. b3 {[%clk 0:00:40.9]} 37... Qd5 {[%clk
0:00:44.2]} 38. Bxb4 {[%clk 0:00:39.6]} 38... Rb8 {[%clk 0:00:44]} 39. Bxe7
{[%clk 0:00:37.1]} 39... Rxb3 {[%clk 0:00:43.5]} 40. Bf6+ {[%clk 0:00:26.9]}
40... Kg8 {[%clk 0:00:42.6]} 41. g3 {[%clk 0:00:15.3]} 41... Rxd3 {[%clk
0:00:38.3]} 42. Rxd3 {[%clk 0:00:16.2]} 42... Qc4 {[%clk 0:00:38.5]} 43. Ne1
{[%clk 0:00:16.6]} 43... Bd2 {[%clk 0:00:35.6]} 44. Ke2 {[%clk 0:00:10.8]} 44...
Bxe1 {[%clk 0:00:35.8]} 45. d5 {[%clk 0:00:08.8]} 45... Qc2+ {[%clk 0:00:35.2]}
46. Ke3 {[%clk 0:00:09.2]} 46... Bxf2+ {[%clk 0:00:34.8]} 47. Ke4 {[%clk
0:00:08.9]} 47... Qc4+ {[%clk 0:00:35.4]} 48. Kf3 {[%clk 0:00:08.9]} 48... Qxd3+
{[%clk 0:00:35.8]} 49. Kxf2 {[%clk 0:00:09.8]} 49... Qxd5 {[%clk 0:00:36.1]} 0-1

[Event "Late-Titled-Tuesday-Blitz-September-26-2023"]
[Site "Chess.com"]
[Date "2023.09.26"]
[Round "11"]
[White "Chempiblinka"]
[Black "Herman-NY"]
[Result "0-1"]
[WhiteElo "2305"]
[BlackElo "2504"]
[TimeControl "180+1"]
[EndTime "16:00:34 PDT"]
[Termination "Herman-NY won on time"]

1. Nf3 {[%clk 0:03:00]} 1... Nf6 {[%clk 0:03:00.2]} 2. c4 {[%clk 0:03:00.1]}
2... g6 {[%clk 0:03:00.7]} 3. g3 {[%clk 0:03:00.2]} 3... Bg7 {[%clk 0:03:01.3]}
4. Bg2 {[%clk 0:03:01.1]} 4... O-O {[%clk 0:03:02.2]} 5. d4 {[%clk 0:03:00.2]}
5... d6 {[%clk 0:03:02.6]} 6. O-O {[%clk 0:03:00.6]} 6... c5 {[%clk 0:03:03.2]}
7. d5 {[%clk 0:02:37.4]} 7... b5 {[%clk 0:02:49.4]} 8. Nbd2 {[%clk 0:02:17.2]}
8... b4 {[%clk 0:02:39.3]} 9. Re1 {[%clk 0:02:10.6]} 9... a5 {[%clk 0:02:37.6]}
10. e4 {[%clk 0:02:10.2]} 10... Nfd7 {[%clk 0:02:37.5]} 11. Rb1 {[%clk
0:01:47.6]} 11... a4 {[%clk 0:02:34.4]} 12. Nf1 {[%clk 0:01:30.6]} 12... Nb6
{[%clk 0:02:30.1]} 13. Ne3 {[%clk 0:01:22.6]} 13... Ba6 {[%clk 0:02:27.4]} 14.
b3 {[%clk 0:01:20.6]} 14... axb3 {[%clk 0:02:05.4]} 15. axb3 {[%clk 0:01:19.1]}
15... N8d7 {[%clk 0:02:04.9]} 16. Ng4 {[%clk 0:01:13.2]} 16... Bxc4 {[%clk
0:01:46.2]} 17. bxc4 {[%clk 0:01:07.2]} 17... Nxc4 {[%clk 0:01:47.1]} 18. Bh6
{[%clk 0:00:54.2]} 18... Bc3 {[%clk 0:01:29.7]} 19. Bxf8 {[%clk 0:00:35.9]}
19... Qxf8 {[%clk 0:01:30.6]} 20. Re2 {[%clk 0:00:26.7]} 20... Qg7 {[%clk
0:01:05.5]} 21. Ne3 {[%clk 0:00:21.9]} 21... Ndb6 {[%clk 0:00:50.1]} 22. h4
{[%clk 0:00:19.9]} 22... Na3 {[%clk 0:00:32.2]} 23. Rc1 {[%clk 0:00:17.3]} 23...
Nb5 {[%clk 0:00:32.6]} 24. h5 {[%clk 0:00:13.7]} 24... c4 {[%clk 0:00:25.8]} 25.
hxg6 {[%clk 0:00:11.9]} 25... hxg6 {[%clk 0:00:26.7]} 26. e5 {[%clk 0:00:10.7]}
26... dxe5 {[%clk 0:00:23.2]} 27. Ng5 {[%clk 0:00:10.9]} 27... Nd6 {[%clk
0:00:21.3]} 28. Ne4 {[%clk 0:00:10.5]} 28... Nxe4 {[%clk 0:00:21.6]} 29. Bxe4
{[%clk 0:00:11.4]} 29... f5 {[%clk 0:00:22.1]} 30. Bb1 {[%clk 0:00:10.4]} 30...
e4 {[%clk 0:00:22.3]} 31. d6 {[%clk 0:00:10.5]} 31... Rd8 {[%clk 0:00:18.1]} 32.
Qc2 {[%clk 0:00:02.7]} 32... Rxd6 {[%clk 0:00:17]} 0-1

[Event "Late-Titled-Tuesday-Blitz-September-26-2023"]
[Site "Chess.com"]
[Date "2023.09.26"]
[Round "11"]
[White "Bilan_Danila"]
[Black "HamedWafa4"]
[Result "1-0"]
[WhiteElo "2527"]
[BlackElo "2624"]
[TimeControl "180+1"]
[EndTime "16:00:51 PDT"]
[Termination "Bilan_Danila won on time"]

1. d4 {[%clk 0:03:00.2]} 1... Nf6 {[%clk 0:02:59.9]} 2. Nf3 {[%clk 0:03:00.9]}
2... c5 {[%clk 0:02:59.4]} 3. e3 {[%clk 0:03:01]} 3... d5 {[%clk 0:02:59.2]} 4.
c3 {[%clk 0:03:01.1]} 4... Nc6 {[%clk 0:02:55.5]} 5. Bd3 {[%clk 0:02:53.7]} 5...
g6 {[%clk 0:02:49.3]} 6. Ne5 {[%clk 0:02:43.2]} 6... Nxe5 {[%clk 0:02:46.2]} 7.
dxe5 {[%clk 0:02:43.5]} 7... Ng4 {[%clk 0:02:41.2]} 8. f4 {[%clk 0:02:26.9]}
8... h5 {[%clk 0:02:35.3]} 9. a4 {[%clk 0:02:15.7]} 9... Bg7 {[%clk 0:02:33.7]}
10. Bb5+ {[%clk 0:02:11]} 10... Kf8 {[%clk 0:02:27.8]} 11. O-O {[%clk
0:02:08.1]} 11... h4 {[%clk 0:02:23.6]} 12. Be2 {[%clk 0:01:51.5]} 12... Nh6
{[%clk 0:02:20.2]} 13. Nd2 {[%clk 0:01:51.7]} 13... h3 {[%clk 0:02:18.1]} 14. g3
{[%clk 0:01:49.2]} 14... Nf5 {[%clk 0:02:17.1]} 15. Nf3 {[%clk 0:01:47.4]} 15...
b6 {[%clk 0:01:49.3]} 16. Qc2 {[%clk 0:01:44.9]} 16... Bb7 {[%clk 0:01:49.2]}
17. g4 {[%clk 0:01:25.2]} 17... Nh4 {[%clk 0:01:40.2]} 18. Ng5 {[%clk
0:01:24.5]} 18... Rc8 {[%clk 0:01:27.8]} 19. Bd2 {[%clk 0:01:11.2]} 19... d4
{[%clk 0:01:22.3]} 20. e4 {[%clk 0:01:09.1]} 20... c4 {[%clk 0:01:15.9]} 21.
cxd4 {[%clk 0:00:44.5]} 21... Qxd4+ {[%clk 0:01:14.2]} 22. Rf2 {[%clk
0:00:44.4]} 22... Bh6 {[%clk 0:01:05.6]} 23. Bc3 {[%clk 0:00:29]} 23... Qc5
{[%clk 0:01:03.6]} 24. Nxh3 {[%clk 0:00:27]} 24... e6 {[%clk 0:00:57.1]} 25. Rd1
{[%clk 0:00:21.6]} 25... Ke7 {[%clk 0:00:48]} 26. Bd4 {[%clk 0:00:16]} 26... Qc6
{[%clk 0:00:46.1]} 27. f5 {[%clk 0:00:04]} 27... Rhd8 {[%clk 0:00:39.5]} 28. f6+
{[%clk 0:00:02.6]} 28... Kf8 {[%clk 0:00:38.3]} 29. g5 {[%clk 0:00:02.9]} 29...
Rd7 {[%clk 0:00:23.2]} 30. gxh6 {[%clk 0:00:03]} 30... Kg8 {[%clk 0:00:23.9]}
31. h7+ {[%clk 0:00:02.9]} 31... Kh8 {[%clk 0:00:22.7]} 32. Ng5 {[%clk
0:00:03.1]} 32... Rcd8 {[%clk 0:00:23.2]} 33. Bc3 {[%clk 0:00:02.8]} 1-0